[Event "*** Titled Tuesday Blitz"]
[Site "Chess.com"]
[Date "2020.10.27"]
[Round "3"]
[White "Natalya_Buksa"]
[Black "Onischuk_V"]
[Result "0-1"]
[WhiteElo "2552"]
[BlackElo "2784"]
[TimeControl "180+1"]
[EndTime "10:28:39 PDT"]
[Termination "Onischuk_V won by resignation"]

1. d4 {[%clk 0:03:00.9]} 1... d6 {[%clk 0:02:59.3]} 2. Nc3 {[%clk 0:03:00.1]}
2... g6 {[%clk 0:02:58.3]} 3. e4 {[%clk 0:02:59.1]} 3... Bg7 {[%clk 0:02:58.9]}
4. Bg5 {[%clk 0:02:59.4]} 4... h6 {[%clk 0:02:57]} 5. Bh4 {[%clk 0:02:59.1]}
5... Nc6 {[%clk 0:02:56.5]} 6. d5 {[%clk 0:02:56.5]} 6... Ne5 {[%clk 0:02:51.8]}
7. h3 {[%clk 0:02:53.4]} 7... c6 {[%clk 0:02:50.2]} 8. f4 {[%clk 0:02:48.9]}
8... Nd7 {[%clk 0:02:50]} 9. Bf2 {[%clk 0:02:44.7]} 9... cxd5 {[%clk 0:02:39.9]}
10. Qxd5 {[%clk 0:02:34.1]} 10... Bxc3+ {[%clk 0:02:37.4]} 11. bxc3 {[%clk
0:02:33.7]} 11... Ngf6 {[%clk 0:02:38.1]} 12. Qd4 {[%clk 0:02:32.1]} 12... Qa5
{[%clk 0:02:35]} 13. Bd3 {[%clk 0:02:03.7]} 13... Nb8 {[%clk 0:02:32.9]} 14. Qb4
{[%clk 0:01:55.5]} 14... Nc6 {[%clk 0:02:30.2]} 15. Qxa5 {[%clk 0:01:54.9]}
15... Nxa5 {[%clk 0:02:30.3]} 16. Nf3 {[%clk 0:01:48.8]} 16... O-O {[%clk
0:02:27.2]} 17. g4 {[%clk 0:01:29.7]} 17... b6 {[%clk 0:02:24.5]} 18. Bd4 {[%clk
0:01:22.3]} 18... Bb7 {[%clk 0:02:23.7]} 19. Nd2 {[%clk 0:01:22.7]} 19... Rac8
{[%clk 0:02:01.9]} 20. O-O {[%clk 0:01:21.7]} 20... Nd7 {[%clk 0:02:01.2]} 21.
c4 {[%clk 0:01:02.1]} 21... Ba6 {[%clk 0:01:51]} 22. Rf2 {[%clk 0:00:49.9]}
22... Nxc4 {[%clk 0:01:40]} 23. Nxc4 {[%clk 0:00:38.5]} 23... Bxc4 {[%clk
0:01:39.4]} 24. a4 {[%clk 0:00:39]} 24... Bxd3 {[%clk 0:01:32.1]} 25. cxd3
{[%clk 0:00:39.9]} 25... Nc5 {[%clk 0:01:32.4]} 26. Ra3 {[%clk 0:00:36.6]} 26...
Rc7 {[%clk 0:01:29]} 27. Rb2 {[%clk 0:00:36.6]} 27... Rfc8 {[%clk 0:01:28.2]}
28. a5 {[%clk 0:00:36.5]} 28... bxa5 {[%clk 0:01:26.8]} 29. Kf2 {[%clk
0:00:36.1]} 29... Ne6 {[%clk 0:01:16.3]} 30. Be3 {[%clk 0:00:33.4]} 30... Rc2+
{[%clk 0:01:12.2]} 31. Rxc2 {[%clk 0:00:32.1]} 31... Rxc2+ {[%clk 0:01:12.7]}
32. Kf3 {[%clk 0:00:32.8]} 32... Nc5 {[%clk 0:01:12.6]} 33. d4 {[%clk
0:00:26.4]} 33... Nb7 {[%clk 0:01:12.4]} 34. Rb3 {[%clk 0:00:25.2]} 34... Rc7
{[%clk 0:01:09.2]} 35. h4 {[%clk 0:00:24]} 35... a4 {[%clk 0:00:57.4]} 36. Rb4
{[%clk 0:00:21.9]} 36... Na5 {[%clk 0:00:54.3]} 37. Rxa4 {[%clk 0:00:20.9]}
37... Nc4 {[%clk 0:00:54.1]} 38. d5 {[%clk 0:00:15.7]} 38... Nxe3 {[%clk
0:00:52.5]} 39. Kxe3 {[%clk 0:00:16.6]} 39... g5 {[%clk 0:00:48.7]} 40. fxg5
{[%clk 0:00:15.8]} 40... hxg5 {[%clk 0:00:48.8]} 41. h5 {[%clk 0:00:16.7]} 41...
Kg7 {[%clk 0:00:49.1]} 42. Kd4 {[%clk 0:00:15.4]} 42... Kf6 {[%clk 0:00:47.1]}
43. Ra1 {[%clk 0:00:14.3]} 43... Rc2 {[%clk 0:00:44.3]} 44. Ke3 {[%clk
0:00:06.2]} 44... Rc3+ {[%clk 0:00:43.8]} 45. Kd4 {[%clk 0:00:03.9]} 45... Rg3
{[%clk 0:00:43]} 46. Rxa7 {[%clk 0:00:03.9]} 46... Rxg4 {[%clk 0:00:42.7]} 47.
Ra1 {[%clk 0:00:03.4]} 47... Rh4 {[%clk 0:00:42.7]} 48. Rf1+ {[%clk 0:00:03.9]}
48... Kg7 {[%clk 0:00:42.9]} 49. h6+ {[%clk 0:00:01.5]} 49... Rxh6 {[%clk
0:00:42.1]} 50. Rf5 {[%clk 0:00:02]} 50... f6 {[%clk 0:00:41.4]} 51. Rf1 {[%clk
0:00:02.4]} 51... Rh4 {[%clk 0:00:41.5]} 52. Rg1 {[%clk 0:00:02.7]} 52... Kg6
{[%clk 0:00:40.9]} 53. Ke3 {[%clk 0:00:03]} 53... f5 {[%clk 0:00:40]} 54. exf5+
{[%clk 0:00:03.6]} 54... Kxf5 {[%clk 0:00:40.3]} 55. Rf1+ {[%clk 0:00:04.5]}
55... Ke5 {[%clk 0:00:38.3]} 56. Rf7 {[%clk 0:00:04.5]} 56... Re4+ {[%clk
0:00:38.6]} 57. Kf3 {[%clk 0:00:04.5]} 57... Kxd5 {[%clk 0:00:39.2]} 58. Rf8
{[%clk 0:00:03.2]} 58... Rf4+ {[%clk 0:00:38.4]} 59. Rxf4 {[%clk 0:00:03.3]} 0-1

[Event "*** Titled Tuesday Blitz"]
[Site "Chess.com"]
[Date "2020.10.27"]
[Round "3"]
[White "GMBenjaminBok"]
[Black "oskariot"]
[Result "1/2-1/2"]
[WhiteElo "2937"]
[BlackElo "2723"]
[TimeControl "180+1"]
[EndTime "10:28:41 PDT"]
[Termination "Game drawn by repetition"]

1. d4 {[%clk 0:03:00.9]} 1... Nf6 {[%clk 0:02:55.4]} 2. c4 {[%clk 0:03:01]} 2...
c5 {[%clk 0:02:53.6]} 3. Nf3 {[%clk 0:03:00.3]} 3... cxd4 {[%clk 0:02:51.1]} 4.
Nxd4 {[%clk 0:03:01.2]} 4... Nc6 {[%clk 0:02:50.8]} 5. Nc3 {[%clk 0:03:01.2]}
5... g6 {[%clk 0:02:50.4]} 6. g3 {[%clk 0:02:58.1]} 6... d6 {[%clk 0:02:50.1]}
7. Bg2 {[%clk 0:02:58.1]} 7... Bd7 {[%clk 0:02:50.1]} 8. O-O {[%clk 0:02:58.2]}
8... Bg7 {[%clk 0:02:50.1]} 9. b3 {[%clk 0:02:56.1]} 9... O-O {[%clk 0:02:47.6]}
10. Nc2 {[%clk 0:02:55.5]} 10... Qa5 {[%clk 0:02:45.3]} 11. Bb2 {[%clk
0:02:55.4]} 11... Rfc8 {[%clk 0:02:45.1]} 12. Qd2 {[%clk 0:02:53.2]} 12... a6
{[%clk 0:02:43.9]} 13. Rfd1 {[%clk 0:02:51.9]} 13... Rab8 {[%clk 0:02:44.2]} 14.
Ne3 {[%clk 0:02:49.3]} 14... b5 {[%clk 0:02:42.5]} 15. Rac1 {[%clk 0:02:47.5]}
15... Qd8 {[%clk 0:02:22]} 16. Ncd5 {[%clk 0:02:05.5]} 16... Nxd5 {[%clk
0:01:31.7]} 17. Nxd5 {[%clk 0:02:05.9]} 17... Bxb2 {[%clk 0:01:25.9]} 18. Qxb2
{[%clk 0:02:06.8]} 18... bxc4 {[%clk 0:01:26.4]} 19. Rxc4 {[%clk 0:02:07.2]}
19... Ne5 {[%clk 0:01:14.4]} 20. Rxc8 {[%clk 0:01:59.2]} 20... Rxc8 {[%clk
0:01:13.2]} 21. Rc1 {[%clk 0:01:55.4]} 21... Bc6 {[%clk 0:01:02.3]} 22. b4
{[%clk 0:01:19.4]} 22... e6 {[%clk 0:00:50]} 23. Ne3 {[%clk 0:01:15.5]} 23...
Bxg2 {[%clk 0:00:47.2]} 24. Kxg2 {[%clk 0:01:13.2]} 24... Rxc1 {[%clk
0:00:44.6]} 25. Qxc1 {[%clk 0:01:14.1]} 25... Qb6 {[%clk 0:00:45]} 26. a3 {[%clk
0:01:00.1]} 26... d5 {[%clk 0:00:27.5]} 27. Qc8+ {[%clk 0:00:46.7]} 27... Kg7
{[%clk 0:00:27.1]} 28. h3 {[%clk 0:00:35.5]} 28... d4 {[%clk 0:00:19.3]} 29. Nc4
{[%clk 0:00:35.5]} 29... Nxc4 {[%clk 0:00:18.9]} 30. Qxc4 {[%clk 0:00:36.4]}
30... e5 {[%clk 0:00:17.8]} 31. Qd5 {[%clk 0:00:32.4]} 31... Qb5 {[%clk
0:00:15.4]} 32. Qf3 {[%clk 0:00:20.1]} 32... f5 {[%clk 0:00:15.2]} 33. Kf1
{[%clk 0:00:19]} 33... e4 {[%clk 0:00:15.4]} 34. Qf4 {[%clk 0:00:18.9]} 34...
Qc4 {[%clk 0:00:11.9]} 35. Qe5+ {[%clk 0:00:17.3]} 35... Kf7 {[%clk 0:00:12.4]}
36. g4 {[%clk 0:00:16.5]} 36... d3 {[%clk 0:00:12.3]} 37. exd3 {[%clk
0:00:15.5]} 37... exd3 {[%clk 0:00:12.8]} 38. Qd6 {[%clk 0:00:08.6]} 38... Qe4
{[%clk 0:00:07.5]} 39. Qd7+ {[%clk 0:00:07.4]} 39... Kf6 {[%clk 0:00:07]} 40.
Qd8+ {[%clk 0:00:07.6]} 40... Ke5 {[%clk 0:00:05]} 41. Qc7+ {[%clk 0:00:07.2]}
41... Kf6 {[%clk 0:00:02.2]} 42. Qd8+ {[%clk 0:00:07.3]} 42... Kg7 {[%clk
0:00:03.1]} 43. Kg1 {[%clk 0:00:03.1]} 43... Qe2 {[%clk 0:00:02.7]} 44. g5
{[%clk 0:00:02.1]} 44... d2 {[%clk 0:00:02.4]} 45. Qd7+ {[%clk 0:00:02.2]} 45...
Kg8 {[%clk 0:00:02.8]} 46. Qd8+ {[%clk 0:00:02.8]} 46... Kf7 {[%clk 0:00:03.7]}
47. Qd7+ {[%clk 0:00:03.2]} 47... Kf8 {[%clk 0:00:03.9]} 48. Qd8+ {[%clk
0:00:03.7]} 48... Kf7 {[%clk 0:00:04.3]} 49. Qd7+ {[%clk 0:00:04.1]} 49... Kf8
{[%clk 0:00:04.8]} 50. Qd8+ {[%clk 0:00:04.6]} 50... Kf7 {[%clk 0:00:05.3]}
1/2-1/2

[Event "*** Titled Tuesday Blitz"]
[Site "Chess.com"]
[Date "2020.10.27"]
[Round "3"]
[White "natelleka"]
[Black "boasovietica"]
[Result "1-0"]
[WhiteElo "2204"]
[BlackElo "2484"]
[TimeControl "180+1"]
[EndTime "10:28:41 PDT"]
[Termination "natelleka won by checkmate"]

1. e4 {[%clk 0:03:00.9]} 1... e5 {[%clk 0:02:59.9]} 2. Nf3 {[%clk 0:03:00.6]}
2... Nc6 {[%clk 0:02:59.7]} 3. Bb5 {[%clk 0:03:00.5]} 3... a6 {[%clk 0:02:59.7]}
4. Ba4 {[%clk 0:03:01]} 4... Nf6 {[%clk 0:02:59.5]} 5. O-O {[%clk 0:03:01.5]}
5... Be7 {[%clk 0:02:59.8]} 6. Re1 {[%clk 0:03:01.4]} 6... b5 {[%clk 0:02:59.4]}
7. Bb3 {[%clk 0:03:01]} 7... d6 {[%clk 0:02:59.9]} 8. c3 {[%clk 0:03:00.8]} 8...
O-O {[%clk 0:03:00.3]} 9. h3 {[%clk 0:03:01.4]} 9... Bb7 {[%clk 0:02:59.6]} 10.
d4 {[%clk 0:03:00.6]} 10... Nd7 {[%clk 0:02:58.6]} 11. Nbd2 {[%clk 0:02:55.8]}
11... exd4 {[%clk 0:02:58.3]} 12. cxd4 {[%clk 0:02:55.2]} 12... Bf6 {[%clk
0:02:58.7]} 13. Nf1 {[%clk 0:02:49.7]} 13... Na5 {[%clk 0:02:58.6]} 14. Bc2
{[%clk 0:02:47.5]} 14... Re8 {[%clk 0:02:58.7]} 15. Ng3 {[%clk 0:02:36.3]} 15...
g6 {[%clk 0:02:58.7]} 16. a4 {[%clk 0:02:17.7]} 16... c5 {[%clk 0:02:54.1]} 17.
axb5 {[%clk 0:02:15.4]} 17... axb5 {[%clk 0:02:55]} 18. dxc5 {[%clk 0:02:11]}
18... dxc5 {[%clk 0:02:38]} 19. Qe2 {[%clk 0:01:45]} 19... Qb6 {[%clk
0:01:53.3]} 20. Rd1 {[%clk 0:01:30.3]} 20... Ne5 {[%clk 0:01:47.4]} 21. Nxe5
{[%clk 0:01:25.5]} 21... Bxe5 {[%clk 0:01:47.5]} 22. f4 {[%clk 0:01:21.3]} 22...
Bd4+ {[%clk 0:01:39.3]} 23. Kh2 {[%clk 0:01:17.1]} 23... Nc6 {[%clk 0:01:24]}
24. Rxa8 {[%clk 0:01:09.2]} 24... Bxa8 {[%clk 0:01:24.9]} 25. Bd3 {[%clk
0:00:46.9]} 25... c4 {[%clk 0:01:13.5]} 26. Bb1 {[%clk 0:00:46.5]} 26... Na5
{[%clk 0:01:10.4]} 27. e5 {[%clk 0:00:31.2]} 27... Nb3 {[%clk 0:01:06.7]} 28.
Ne4 {[%clk 0:00:28.8]} 28... Bxe4 {[%clk 0:01:03.5]} 29. Bxe4 {[%clk 0:00:26.9]}
29... Nxc1 {[%clk 0:01:01.1]} 30. Rxc1 {[%clk 0:00:26.4]} 30... Be3 {[%clk
0:00:59.1]} 31. Rf1 {[%clk 0:00:24.7]} 31... Rd8 {[%clk 0:00:48.6]} 32. Rf3
{[%clk 0:00:22.2]} 32... Bd4 {[%clk 0:00:41.6]} 33. Bb1 {[%clk 0:00:20]} 33...
Qc5 {[%clk 0:00:38.4]} 34. Rf1 {[%clk 0:00:17.3]} 34... b4 {[%clk 0:00:38]} 35.
e6 {[%clk 0:00:17.1]} 35... fxe6 {[%clk 0:00:36.4]} 36. Qxe6+ {[%clk 0:00:16.2]}
36... Kg7 {[%clk 0:00:36.9]} 37. Re1 {[%clk 0:00:11.8]} 37... Bf6 {[%clk
0:00:15.5]} 38. Ba2 {[%clk 0:00:09.8]} 38... b3 {[%clk 0:00:15]} 39. Bb1 {[%clk
0:00:09.3]} 39... Qd4 {[%clk 0:00:14.2]} 40. Re4 {[%clk 0:00:07.6]} 40... Qxb2
{[%clk 0:00:08.9]} 41. Rxc4 {[%clk 0:00:06.7]} 41... Rd2 {[%clk 0:00:05.1]} 42.
Rc7+ {[%clk 0:00:06.3]} 42... Kh6 {[%clk 0:00:05.5]} 43. Be4 {[%clk 0:00:03]}
43... Rd1 {[%clk 0:00:03.1]} 44. Qxf6 {[%clk 0:00:02.8]} 44... Qf2 {[%clk
0:00:03.5]} 45. Qg5# {[%clk 0:00:01.9]} 1-0

[Event "*** Titled Tuesday Blitz"]
[Site "Chess.com"]
[Date "2020.10.27"]
[Round "3"]
[White "azikom"]
[Black "infinitegiantkiller"]
[Result "0-1"]
[WhiteElo "2596"]
[BlackElo "2418"]
[TimeControl "180+1"]
[EndTime "10:28:43 PDT"]
[Termination "infinitegiantkiller won on time"]

1. e4 {[%clk 0:02:58.9]} 1... e6 {[%clk 0:03:00.9]} 2. Nc3 {[%clk 0:02:56.5]}
2... d5 {[%clk 0:03:01.8]} 3. d4 {[%clk 0:02:55.3]} 3... Nf6 {[%clk 0:03:01.7]}
4. exd5 {[%clk 0:02:51.6]} 4... exd5 {[%clk 0:03:00.7]} 5. Bg5 {[%clk
0:02:50.2]} 5... Be7 {[%clk 0:02:59.4]} 6. Qd2 {[%clk 0:02:45.9]} 6... O-O
{[%clk 0:02:58.1]} 7. O-O-O {[%clk 0:02:44.5]} 7... Nc6 {[%clk 0:02:54.4]} 8.
Kb1 {[%clk 0:02:38.5]} 8... Ne4 {[%clk 0:02:50.6]} 9. Nxe4 {[%clk 0:02:36.2]}
9... dxe4 {[%clk 0:02:47.4]} 10. h4 {[%clk 0:02:34.3]} 10... Bg4 {[%clk
0:02:43.5]} 11. Be2 {[%clk 0:02:28.8]} 11... Bxe2 {[%clk 0:02:42.9]} 12. Nxe2
{[%clk 0:02:27.7]} 12... f6 {[%clk 0:02:38.8]} 13. Bf4 {[%clk 0:02:21]} 13... f5
{[%clk 0:02:38]} 14. d5 {[%clk 0:02:17.3]} 14... Nb8 {[%clk 0:02:34.8]} 15. Qc3
{[%clk 0:02:08.4]} 15... Bd6 {[%clk 0:02:33.8]} 16. Qb3 {[%clk 0:02:00.6]} 16...
Bxf4 {[%clk 0:02:19.8]} 17. Nxf4 {[%clk 0:01:57.1]} 17... Qd6 {[%clk 0:02:19.3]}
18. Ne6 {[%clk 0:01:53.9]} 18... Rc8 {[%clk 0:02:19.1]} 19. Qxb7 {[%clk
0:01:52.6]} 19... Nd7 {[%clk 0:02:19.2]} 20. Qb3 {[%clk 0:01:41.1]} 20... Rab8
{[%clk 0:02:15.5]} 21. Qc3 {[%clk 0:01:38.2]} 21... Qe5 {[%clk 0:02:09.2]} 22.
Qxe5 {[%clk 0:01:36.2]} 22... Nxe5 {[%clk 0:02:10.1]} 23. b3 {[%clk 0:01:35.6]}
23... Kf7 {[%clk 0:01:40.6]} 24. Rhe1 {[%clk 0:01:33]} 24... Kf6 {[%clk
0:01:37.5]} 25. Nf4 {[%clk 0:01:26.9]} 25... g6 {[%clk 0:01:32.8]} 26. d6 {[%clk
0:01:24.8]} 26... cxd6 {[%clk 0:01:29.3]} 27. Rxd6+ {[%clk 0:01:23.4]} 27... Kf7
{[%clk 0:01:29.8]} 28. Ra6 {[%clk 0:01:21.7]} 28... Rb7 {[%clk 0:01:27.6]} 29.
Rd1 {[%clk 0:01:20.9]} 29... Rbc7 {[%clk 0:01:24.5]} 30. c4 {[%clk 0:01:19.2]}
30... Rb7 {[%clk 0:01:21.6]} 31. Ka1 {[%clk 0:01:18.7]} 31... Ng4 {[%clk
0:01:17.9]} 32. Rd2 {[%clk 0:01:15.3]} 32... e3 {[%clk 0:01:15.3]} 33. fxe3
{[%clk 0:01:14.6]} 33... Nxe3 {[%clk 0:01:14.9]} 34. Rd3 {[%clk 0:01:12.4]}
34... Nc2+ {[%clk 0:01:12.6]} 35. Kb2 {[%clk 0:01:06.3]} 35... Nb4 {[%clk
0:01:13.2]} 36. Ra5 {[%clk 0:00:57.2]} 36... Nxd3+ {[%clk 0:01:11.1]} 37. Nxd3
{[%clk 0:00:55.2]} 37... Re8 {[%clk 0:01:09]} 38. Kc3 {[%clk 0:00:47.9]} 38...
Re2 {[%clk 0:01:06.2]} 39. b4 {[%clk 0:00:38]} 39... Rxg2 {[%clk 0:01:03.9]} 40.
c5 {[%clk 0:00:37.2]} 40... Rh2 {[%clk 0:00:55]} 41. c6 {[%clk 0:00:32]} 41...
Rc7 {[%clk 0:00:55.1]} 42. b5 {[%clk 0:00:30.4]} 42... Rxh4 {[%clk 0:00:52.3]}
43. Ra6 {[%clk 0:00:29.1]} 43... Ke7 {[%clk 0:00:46.8]} 44. a4 {[%clk
0:00:25.3]} 44... Kd6 {[%clk 0:00:43.7]} 45. Nb2 {[%clk 0:00:24.4]} 45... Re4
{[%clk 0:00:30.7]} 46. Nc4+ {[%clk 0:00:19.1]} 46... Kc5 {[%clk 0:00:28.2]} 47.
Nb2 {[%clk 0:00:18.6]} 47... h5 {[%clk 0:00:25.6]} 48. Nd3+ {[%clk 0:00:17.8]}
48... Kd6 {[%clk 0:00:21.4]} 0-1

[Event "*** Titled Tuesday Blitz"]
[Site "Chess.com"]
[Date "2020.10.27"]
[Round "3"]
[White "IMprovidence"]
[Black "Guenplen"]
[Result "0-1"]
[WhiteElo "2456"]
[BlackElo "2838"]
[TimeControl "180+1"]
[EndTime "10:28:45 PDT"]
[Termination "Guenplen won by checkmate"]

1. c4 {[%clk 0:03:00.9]} 1... e6 {[%clk 0:03:00]} 2. g3 {[%clk 0:03:00.6]} 2...
d5 {[%clk 0:03:00.9]} 3. Bg2 {[%clk 0:03:01]} 3... Nf6 {[%clk 0:03:01.4]} 4. Nf3
{[%clk 0:03:01.2]} 4... Be7 {[%clk 0:03:01.9]} 5. O-O {[%clk 0:03:02.1]} 5...
O-O {[%clk 0:03:02.3]} 6. d4 {[%clk 0:03:02.6]} 6... Nbd7 {[%clk 0:03:02.5]} 7.
Qc2 {[%clk 0:03:00.7]} 7... c6 {[%clk 0:03:02.6]} 8. Rd1 {[%clk 0:03:00.3]} 8...
b6 {[%clk 0:03:02.7]} 9. Nc3 {[%clk 0:02:57.4]} 9... Bb7 {[%clk 0:02:50.3]} 10.
Bf4 {[%clk 0:02:56.5]} 10... dxc4 {[%clk 0:02:45.9]} 11. e4 {[%clk 0:02:56.4]}
11... b5 {[%clk 0:02:37.6]} 12. a4 {[%clk 0:02:56.2]} 12... a6 {[%clk
0:02:37.5]} 13. Ne5 {[%clk 0:02:53.5]} 13... h6 {[%clk 0:02:33.2]} 14. d5 {[%clk
0:02:43.3]} 14... Nxe5 {[%clk 0:02:24.9]} 15. Bxe5 {[%clk 0:02:42.7]} 15... cxd5
{[%clk 0:02:25.2]} 16. axb5 {[%clk 0:02:18.3]} 16... axb5 {[%clk 0:02:22.3]} 17.
Rxa8 {[%clk 0:02:16.2]} 17... Qxa8 {[%clk 0:02:16]} 18. exd5 {[%clk 0:02:13]}
18... Nxd5 {[%clk 0:02:11.3]} 19. Nxb5 {[%clk 0:02:12.7]} 19... Nb4 {[%clk
0:02:05.6]} 20. Bxb7 {[%clk 0:02:08.9]} 20... Qxb7 {[%clk 0:02:06.5]} 21. Qxc4
{[%clk 0:02:04.9]} 21... Nd5 {[%clk 0:02:03.1]} 22. Nc3 {[%clk 0:01:39.2]} 22...
Nf6 {[%clk 0:01:37.8]} 23. Qe2 {[%clk 0:01:31.6]} 23... Rc8 {[%clk 0:01:34.8]}
24. h3 {[%clk 0:01:25.6]} 24... Qb3 {[%clk 0:01:31.8]} 25. Rd2 {[%clk 0:01:23]}
25... Qb7 {[%clk 0:01:23.7]} 26. Kh2 {[%clk 0:00:54.1]} 26... Ra8 {[%clk
0:01:21.6]} 27. f4 {[%clk 0:00:51.5]} 27... Bb4 {[%clk 0:01:15.1]} 28. Qg2
{[%clk 0:00:48.5]} 28... Qxg2+ {[%clk 0:01:11.4]} 29. Kxg2 {[%clk 0:00:49]}
29... Nd5 {[%clk 0:01:05.1]} 30. Re2 {[%clk 0:00:46.1]} 30... Bxc3 {[%clk
0:01:03.5]} 31. Bxc3 {[%clk 0:00:44.7]} 31... Rb8 {[%clk 0:00:59.6]} 32. Be5
{[%clk 0:00:43]} 32... Rb3 {[%clk 0:00:58.2]} 33. Kf2 {[%clk 0:00:42.6]} 33...
f6 {[%clk 0:00:57.6]} 34. Bd4 {[%clk 0:00:41.9]} 34... Kf7 {[%clk 0:00:58]} 35.
Rd2 {[%clk 0:00:38.7]} 35... h5 {[%clk 0:00:57.7]} 36. h4 {[%clk 0:00:38]} 36...
Ne7 {[%clk 0:00:56.6]} 37. Bc3 {[%clk 0:00:36.4]} 37... Nd5 {[%clk 0:00:56.5]}
38. Rc2 {[%clk 0:00:36.2]} 38... Kg6 {[%clk 0:00:55.5]} 39. Ke2 {[%clk 0:00:36]}
39... Kf5 {[%clk 0:00:55.4]} 40. Kd3 {[%clk 0:00:34.5]} 40... Rb7 {[%clk
0:00:55.1]} 41. Kd4 {[%clk 0:00:32.5]} 41... Kg4 {[%clk 0:00:52.7]} 42. Be1
{[%clk 0:00:30.8]} 42... Ne7 {[%clk 0:00:47.2]} 43. b4 {[%clk 0:00:29]} 43...
Nf5+ {[%clk 0:00:43]} 44. Kc3 {[%clk 0:00:28]} 44... Ne3 {[%clk 0:00:38.7]} 45.
Re2 {[%clk 0:00:22.3]} 45... Nd5+ {[%clk 0:00:33.7]} 46. Kb3 {[%clk 0:00:18.9]}
46... Rb6 {[%clk 0:00:27.4]} 47. Ka4 {[%clk 0:00:15]} 47... Kf3 {[%clk
0:00:27.2]} 48. Rc2 {[%clk 0:00:14.1]} 48... Ra6+ {[%clk 0:00:25.5]} 49. Kb5
{[%clk 0:00:13.9]} 49... Ra1 {[%clk 0:00:25.6]} 50. Kc5 {[%clk 0:00:13.6]} 50...
Rxe1 {[%clk 0:00:24.9]} 51. b5 {[%clk 0:00:13.9]} 51... Rb1 {[%clk 0:00:24.8]}
52. Ra2 {[%clk 0:00:11.6]} 52... Kxg3 {[%clk 0:00:24.5]} 53. Ra3+ {[%clk
0:00:11.8]} 53... Kxf4 {[%clk 0:00:23.1]} 54. Ra6 {[%clk 0:00:12.3]} 54... Ke5
{[%clk 0:00:22.6]} 55. Ra5 {[%clk 0:00:11.6]} 55... Rc1# {[%clk 0:00:22.7]} 0-1

[Event "*** Titled Tuesday Blitz"]
[Site "Chess.com"]
[Date "2020.10.27"]
[Round "3"]
[White "MaxLeto"]
[Black "Zhani-Z"]
[Result "1-0"]
[WhiteElo "2340"]
[BlackElo "2528"]
[TimeControl "180+1"]
[EndTime "10:28:45 PDT"]
[Termination "MaxLeto won on time"]

1. g4 {[%clk 0:02:51.9]} 1... d5 {[%clk 0:02:59.4]} 2. Bg2 {[%clk 0:02:51.1]}
2... c6 {[%clk 0:02:55.6]} 3. g5 {[%clk 0:02:49.6]} 3... e5 {[%clk 0:02:53]} 4.
d4 {[%clk 0:02:49.7]} 4... exd4 {[%clk 0:02:44.1]} 5. Qxd4 {[%clk 0:02:42.1]}
5... Be6 {[%clk 0:02:33]} 6. Nc3 {[%clk 0:02:12.8]} 6... Nd7 {[%clk 0:02:17.7]}
7. Bf4 {[%clk 0:02:03.4]} 7... Ne7 {[%clk 0:02:15]} 8. O-O-O {[%clk 0:01:57.8]}
8... Qa5 {[%clk 0:02:04.1]} 9. e4 {[%clk 0:01:32.3]} 9... c5 {[%clk 0:01:50.8]}
10. Qa4 {[%clk 0:00:58.4]} 10... Qxa4 {[%clk 0:01:50.5]} 11. Nxa4 {[%clk
0:00:59.3]} 11... d4 {[%clk 0:01:50.9]} 12. c3 {[%clk 0:00:40.9]} 12... b5
{[%clk 0:01:39.3]} 13. Nxc5 {[%clk 0:00:35.5]} 13... Nxc5 {[%clk 0:01:38.1]} 14.
cxd4 {[%clk 0:00:36]} 14... Ng6 {[%clk 0:01:30]} 15. Bg3 {[%clk 0:00:26.1]}
15... Na4 {[%clk 0:01:03]} 16. d5 {[%clk 0:00:23.6]} 16... Bd7 {[%clk
0:01:01.5]} 17. f4 {[%clk 0:00:16.8]} 17... h5 {[%clk 0:00:44.1]} 18. h4 {[%clk
0:00:10.9]} 18... Bc5 {[%clk 0:00:31]} 19. Kb1 {[%clk 0:00:06.2]} 19... Be3
{[%clk 0:00:29.8]} 20. Rf1 {[%clk 0:00:03.3]} 20... Bg4 {[%clk 0:00:24.7]} 21.
f5 {[%clk 0:00:03.3]} 21... Ne7 {[%clk 0:00:23.7]} 22. f6 {[%clk 0:00:02.8]}
22... gxf6 {[%clk 0:00:22.7]} 23. gxf6 {[%clk 0:00:03.4]} 23... Ng6 {[%clk
0:00:22.5]} 24. e5 {[%clk 0:00:03]} 24... O-O {[%clk 0:00:20.8]} 25. Nf3 {[%clk
0:00:03]} 25... Rfe8 {[%clk 0:00:19.4]} 26. e6 {[%clk 0:00:02.5]} 26... Rad8
{[%clk 0:00:15.4]} 27. Ng5 {[%clk 0:00:02.7]} 27... Bxg5 {[%clk 0:00:15]} 28.
hxg5 {[%clk 0:00:03]} 28... Nc5 {[%clk 0:00:14.5]} 29. e7 {[%clk 0:00:02.6]}
29... Rd7 {[%clk 0:00:13.8]} 30. d6 {[%clk 0:00:02.9]} 30... Ne6 {[%clk
0:00:11.5]} 31. Bc6 {[%clk 0:00:02.9]} 31... Nc5 {[%clk 0:00:10.6]} 32. Bxb5
{[%clk 0:00:03]} 32... a6 {[%clk 0:00:09.8]} 33. Bc6 {[%clk 0:00:02.4]} 33...
Rc8 {[%clk 0:00:09.5]} 34. Bxd7 {[%clk 0:00:02.7]} 34... Bxd7 {[%clk 0:00:09.4]}
35. Rc1 {[%clk 0:00:03.4]} 35... Bf5+ {[%clk 0:00:07.6]} 36. Ka1 {[%clk
0:00:02.9]} 36... Bd7 {[%clk 0:00:05]} 37. Bf2 {[%clk 0:00:03.4]} 37... Nb7
{[%clk 0:00:03.2]} 38. Rxc8+ {[%clk 0:00:04.3]} 38... Bxc8 {[%clk 0:00:03.5]}
39. Rxh5 {[%clk 0:00:04.9]} 39... Nxd6 {[%clk 0:00:03.4]} 40. Rh1 {[%clk
0:00:04.9]} 40... Be6 {[%clk 0:00:02]} 41. Rd1 {[%clk 0:00:05.3]} 41... Ne5
{[%clk 0:00:01.6]} 42. Rxd6 {[%clk 0:00:05.3]} 42... Kh7 {[%clk 0:00:01.4]} 43.
e8=Q {[%clk 0:00:05.5]} 1-0